Cogmind - Beta 13 @@@ ROGUE MODE // 2024.03.04 @ 08:20:36 Player: J1ANG-5HI Result: Smashed by cave-in Performance ------------- Evolutions (5) 2500 Regions Visited (10) 2000 Robots Destroyed (108) 540 Value Destroyed (4637) 4637 Prototype IDs (9) 180 Alien Tech Used (0) 0 Bonus (3646) 3646 TOTAL SCORE: 13503 Bonus ------- High Alert Combat Kills 1789 Follower Combat Kills 1747 Met R17 at Cetus 500 Friendly Fire -390 Cogmind --------- Core Integrity 0/1000 Matter 6/700 Energy 310/310 System Corruption 7% Temperature Cool (18) Movement Treading (160) Location -5/Factory Parts ------- > --- POWER (2) -------- Reinforced Fission Core > --- PROPULSION (4) --- High-density Centrium Heavy Treads High-density Centrium Heavy Treads > --- UTILITY (8) ------ High-capacity Storage Unit Advanced Matter Compressor Enhanced Optical Array > --- WEAPON (3) ------- Compact Linear Accelerator (fused) Compact Linear Accelerator Tactical Quantum Warhead > --- INVENTORY (20) --- High-density Centrium Heavy Treads High-density Centrium Heavy Treads High-density Centrium Heavy Treads Heavy Armored Exoskeleton Advanced Heat Sink Weapon Cycler Improved Shock Absorption System Remote Force Field Advanced Recalibrator Compact Linear Accelerator Heavy Mace Centrium Greatsword Peak State ------------ > --- POWER ------------ Reinforced Fission Core > --- PROPULSION ------- High-density Centrium Heavy Treads High-density Centrium Heavy Treads > --- UTILITY ---------- Scrap Engine Advanced Heat Sink Advanced Heat Sink High-capacity Storage Unit Advanced Matter Compressor Enhanced Optical Array Microactuators > --- WEAPON ----------- Compact Linear Accelerator Compact Linear Accelerator Compact Linear Accelerator > --- INVENTORY -------- High-density Centrium Heavy Treads High-density Centrium Heavy Treads High-density Centrium Heavy Treads Heavy Armored Exoskeleton Weapon Cycler Improved Shock Absorption System Remote Force Field Advanced Recalibrator Tactical Quantum Warhead Heavy Mace Centrium Greatsword [Rating: 134] Favorites ----------- Power Antimatter Reactor Engine Improved Ion Engine Power Core Reinforced Fission Core Reactor Antimatter Reactor Propulsion Heavy Treads Treads Heavy Treads Leg Titanium Leg Wheel Compact Wheel Utility High-capacity Storage Unit Device Improved Phase Shifter Storage High-capacity Storage Unit Processor Enhanced Optical Array Protection Core Shielding Weapon Bore Cannon Energy Gun Heavy Beamcaster Ballistic Gun Advanced KE Penetrator Ballistic Cannon Bore Cannon Launcher Tactical Quantum Warhead Impact Weapon Powered Hammer Slashing Weapon Makeshift Axe Build | -11 -10 -10 -9 -7 -6 -6 -6 -6 -6 -5 ------- Run | Yrd Mat Sub Rec Fac Fac Was Fac Ext Cet Fac Slots Evolved 10 | . . . . 6 2 . . . . 2 Power 1 | . . . . 1 . . . . . . Propulsion 2 | . . . . 2 . . . . . . Utility 6 | . . . . 2 2 . . . . 2 Weapon 1 | . . . . 1 . . . . . . Parts Attached 102 | . 4 6 3 17 4 19 . 8 8 33 Power 15 | . . 1 2 2 1 3 . . 3 3 Engine 4 | . . . 2 1 . . . . . 1 Core 6 | . . 1 . 1 1 1 . . . 2 Reactor 5 | . . . . . . 2 . . 3 . Propulsion 18 | . 2 . . 6 . 4 . . 2 4 Treads 10 | . . . . 2 . 3 . . 2 3 Leg 5 | . . . . 4 . 1 . . . . Wheel 3 | . 2 . . . . . . . . 1 Hover . | . . . . . . . . . . . Flight . | . . . . . . . . . . . Utility 34 | . 2 . . 6 2 6 . 4 1 13 Device 22 | . 1 . . 3 1 6 . 3 1 7 Storage 5 | . 1 . . 1 . . . . . 3 Processor 2 | . . . . . 1 . . 1 . . Hackware . | . . . . . . . . . . . Protection 5 | . . . . 2 . . . . . 3 Artifact . | . . . . . . . . . . . Weapon 35 | . . 5 1 3 1 6 . 4 2 13 Energy Gun 3 | . . . . . 1 2 . . . . Energy Cannon . | . . . . . . . . . . . Ballistic Gun 10 | . . 2 1 3 . 1 . . 2 1 Ballistic Cannon 9 | . . . . . . 1 . 3 . 5 Launcher 3 | . . 1 . . . . . . . 2 Special Weapon . | . . . . . . . . . . . Impact Weapon 3 | . . . . . . . . 1 . 2 Slashing Weapon 7 | . . 2 . . . 2 . . . 3 Piercing Weapon . | . . . . . . . . . . . Special Melee Weapon . | . . . . . . . . . . . Unidentified Prototypes 9 | . . . . . . . . . 2 7 Corrupted Parts 1 | . . . . . . . . . 1 . System Corruption 3 | . . . . . . . . . 3 . Parts Lost 45 | . . 2 . 7 7 . . 2 . 27 Power 9 | . . 2 . 2 1 . . . . 4 Propulsion 8 | . . . . 3 2 . . . . 3 Utility 19 | . . . . . 2 . . 2 . 15 Weapon 9 | . . . . 2 2 . . . . 5 Highest Loss Streak 10 | . . 1 . 3 7 . . 1 . 10 To Critical Strikes 1 | . . . . . . . . . . 1 Average Slot Usage (%) 85 | . 98 92 100 87 84 82 86 85 85 76 Engine 3 | . 14 11 14 12 5 . . . . . Reactor 7 | . . . . . . 11 13 13 13 6 Treads 9 | . . . . 11 . 12 13 13 12 10 Leg 1 | . . . . 6 25 1 . . . . Wheel 6 | . 28 28 28 10 . . . . . . Device 21 | . 12 14 14 10 8 24 33 27 26 23 Storage 7 | . 14 14 14 7 6 6 6 6 6 7 Processor 3 | . . . . . 3 3 . 4 6 5 Protection 1 | . . . . 7 12 2 . . . 1 Energy Gun 2 | . . . . . 1 3 13 6 . . Ballistic Gun 8 | . 28 19 23 17 17 2 . . 8 6 Ballistic Cannon 5 | . . . . . . 4 6 9 10 7 Naked Turns . | . . . . . . . . . . . Heaviest Build 127 | 12 48 57 55 64 68 101 101 119 125 127 Greatest Support 180 | 20 32 32 32 71 71 140 140 140 160 180 Greatest Overweight (x) 17 | . 1 1 1 1 1 1 . . 1 17 Average Overweight (x) . | . . 1 1 . . . . . . . Largest Inventory Capacity 20 | . 20 20 20 20 20 20 20 20 20 20 Average Capacity 19 | . 19 20 20 20 20 20 20 20 20 20 Most Carried 20 | . 13 19 20 20 20 20 20 20 20 20 Average Carried 18 | . 11 17 18 17 19 19 19 19 19 17 Final Capacity 20 | 8 20 20 20 20 20 20 20 20 20 20 Final Carried 20 | 6 13 18 20 17 20 20 20 20 20 19 Class Distribution -------------------- 27% | Mutant 25% | Scavenger-Tank 19% | Scavenger-Mutant 11% | Commander-Tank 4% | Commander-Mutant 4% | Tank 4% | Skirmisher Dominant Class ---------------- Mutant | -10/Materials Mutant | -10/Subcaves Mutant | -9/Recycling Mutant | -7/Factory Tank | -6/Factory Scavenger-Mutant | -6/Waste Scavenger-Tank | -6/Factory Commander-Tank | -6/Extension Commander-Tank | -6/Cetus Scavenger-Tank | -5/Factory Resources | -11 -10 -10 -9 -7 -6 -6 -6 -6 -6 -5 ----------- Run | Yrd Mat Sub Rec Fac Fac Was Fac Ext Cet Fac Matter Collected 3663 | 200 81 245 221 471 65 190 56 595 134 1405 Remotely . | . . . . . . . . . . . Salvage Created 5186 | . 44 253 100 661 65 1075 138 617 . 2233 Parts 207 | . 5 22 7 27 . 8 6 27 . 105 Haulers Intercepted 3 | . . . . . . . . . . 3 Recyclers Shooed 3 | . . . . 2 . . . . . 1 Parts Field Recycled . | . . . . . . . . . . . Retrieved Matter . | . . . . . . . . . . . Parts Self-Destructed 9 | . . 9 . . . . . . . . Prevented . | . . . . . . . . . . . Kills | -11 -10 -10 -9 -7 -6 -6 -6 -6 -6 -5 ------- Run | Yrd Mat Sub Rec Fac Fac Was Fac Ext Cet Fac Combat Hostiles Destroyed 84 | . 1 9 1 11 1 . 1 10 . 50 Melee 4 | . . . . . . . . . . 4 Guns 33 | . 1 5 1 11 1 . . 4 . 10 Cannons 24 | . . . . . . . 1 5 . 18 AOE 21 | . . 4 . . . . . . . 17 Classes Destroyed 18 | . 1 3 2 1 . . 1 2 . 8 Worker 5 | . . . . . . . 1 . . 4 Builder 4 | . . . . . . . . . . 4 Hauler 3 | . . . . . . . . . . 3 Recycler 6 | . . . 1 2 . . 1 . . 2 Mechanic 2 | . . . . . . . . . . 2 Watcher 3 | . . . . . . . . 2 . 1 Swarmer 16 | . . 4 . 3 . . . . . 9 Saboteur 2 | . . . . . . . . . . 2 Grunt 28 | . 1 . . 4 1 . . 5 . 17 Brawler 1 | . . . . . . . . . . 1 Duelist 3 | . . . . . . . . . . 3 Protector 2 | . . . . . . . . . . 2 Sentry 8 | . . . 1 2 . . . 3 . 2 Specialist 1 | . . . . . . . . . . 1 Hunter 10 | . . . . . . . . 2 . 8 Programmer 8 | . . . . 2 . . 1 . . 5 Artisan 1 | . . 1 . . . . . . . . Subdweller 5 | . . 5 . . . . . . . . Thug 1 | . . . . . . . . 1 . . Best Kill Streak 14 | . 1 4 2 4 1 . 2 2 . 14 Combat Bots Only 8 | . 1 4 1 3 1 . 1 2 . 8 Max Kills in Single Turn 9 | . 1 3 1 2 1 . 2 2 . 9 Gunslinging 1 | . . . . 1 . . . . . . Exploded 6 | . . 3 . . . . . . . 6 Melee 1 | . . . . . . . . . . 1 Uniques/NPCs Destroyed . | . . . . . . . . . . . Combat | -11 -10 -10 -9 -7 -6 -6 -6 -6 -6 -5 -------- Run | Yrd Mat Sub Rec Fac Fac Was Fac Ext Cet Fac Hostile Shots Fired 1031 | . 4 52 8 172 75 . 8 94 2 616 Missed 316 | . 2 18 . 67 32 . 4 35 1 157 Damage Taken 11737 | . 25 542 117 1151 776 . 60 639 60 8367 Core 1531 | . 11 181 12 120 109 . 14 31 . 1053 Absorbed by Shields 688 | . . . . . . . . 355 46 287 Reduced by Siege Mode 31 | . . . . . . . . . . 31 Redirected to Shielding 46 | . . . . 23 23 . . . . . Ignored by Resistances 18 | . . . . . . . . . . 18 Regen/Repaired (Parts) 31 | . . . . . . . . . . 31 Core Remaining (%) 70 | 100 . . 18 82 . . . . 81 . Volleys Fired 276 | . 8 24 6 47 9 . 8 75 5 94 Largest 3 | . 2 2 2 3 3 . 3 3 2 3 Hottest 215 | . 40 61 61 71 112 . 215 215 70 210 Shots Fired 608 | . 16 39 12 129 27 . 24 128 6 227 Gun 387 | . 16 32 12 129 27 . 16 53 6 96 Cannon 210 | . . . . . . . 8 75 . 127 Launcher 11 | . . 7 . . . . . . . 4 Special . | . . . . . . . . . . . Kinetic 526 | . 16 39 12 129 18 . 8 75 6 223 Thermal 78 | . . . . . 9 . 16 53 . . Explosive 4 | . . . . . . . . . . 4 Electromagnetic . | . . . . . . . . . . . Robot Hit Streak 17 | . 7 8 5 17 6 . 16 11 8 15 Robot Miss Streak 6 | . 3 2 2 4 2 . 3 3 . 6 Penetration Max 1 | . . . . . . . . . . 1 Secondary Targets 2 | . . . . 2 . . . . . . Max Gunslinging Chain 1 | . . . . 1 . . . . . . Shots Hit Robots 400 | . 11 24 7 90 13 26 18 65 3 143 Core Hits 220 | . 4 16 3 32 5 7 10 38 . 105 Critical Kills 13 | . . 1 . . . . . 2 . 10 Critical Parts Destroyed 20 | . . . . . . . . 7 1 12 Critical Strikes 52 | . . 1 . . . 2 2 16 2 29 Burn 5 | . . . . . . . 2 3 . . Destroy 36 | . . 1 . . . . . 13 2 20 Blast 6 | . . . . . . . . . . 6 Smash 3 | . . . . . . . . . . 3 Sever 2 | . . . . . . 2 . . . . Melee Attacks 76 | . . 13 . . . 26 . 5 . 32 Thermal 8 | . . . . . . . . . . 8 Impact 27 | . . . . . . . . 5 . 22 Slashing 41 | . . 13 . . . 26 . . . 2 Piercing . | . . . . . . . . . . . Sneak Attacks 2 | . . 1 . . . . . . . 1 Combat Hostiles 1 | . . . . . . . . . . 1 Follow-up Attacks 3 | . . . . . . . . . . 3 Damage Inflicted 15567 | . 87 841 135 1245 205 1047 464 1630 73 9840 Guns 4810 | . 87 350 135 1245 205 . 290 780 73 1645 Cannons 3588 | . . . . . . . 174 850 . 2564 Explosions 5288 | . . 404 . . . . . . . 4884 Melee 1869 | . . 87 . . . 1047 . . . 735 Ramming 12 | . . . . . . . . . . 12 Kinetic 7653 | . 87 754 135 1245 126 . 174 850 73 4209 Thermal 1492 | . . . . . 79 . 290 780 . 343 Explosive 4443 | . . . . . . . . . . 4443 Electromagnetic 98 | . . . . . . . . . . 98 Impact 658 | . . . . . . . . . . 658 Slashing 1211 | . . 87 . . . 1047 . . . 77 Piercing . | . . . . . . . . . . . Highest Corruption 7 | . . . . . . . 1 1 4 7 Average Corruption 1 | . . . . . . . 1 1 3 2 Corruption Purged . | . . . . . . . . . . . Corruption Blocked . | . . . . . . . . . . . Effects 29 | . . . . . . . . 15 7 7 Message Errors 6 | . . . . . . . . 3 1 2 Matter Fused 4 | . . . . . . . . 3 . 1 Heat Flow Errors 3 | . . . . . . . . 2 1 . Energy Discharges 4 | . . . . . . . . 1 3 . Parts Fused 1 | . . . . . . . . . . 1 Data Loss (minor) 5 | . . . . . . . . 2 2 1 Data Loss (major) 3 | . . . . . . . . 2 . 1 Alerts 1 | . . . . . . . . 1 . . Weapon Failures 2 | . . . . . . . . 1 . 1 Overload Shots . | . . . . . . . . . . . Overflow Damage 613 | . . 51 . . . . 6 . . 556 Projectiles 79 | . . . . . . . 6 . . 73 Explosions 436 | . . 4 . . . . . . . 432 Melee 98 | . . 47 . . . . . . . 51 Knockbacks 37 | . . . . . . . 10 6 . 21 Impact 4 | . . . . . . . . . . 4 Kinetic 30 | . . . . . . . 10 6 . 14 Secondary 3 | . . . . . . . . . . 3 Self-Inflicted Damage 200 | . . 25 . . . . . . . 175 Shots 4 | . . 1 . . . . . . . 3 Rammed 1 | . . . . . . . . . . 1 Targets Rammed 1 | . . . . . . . . . . 1 Kicked . | . . . . . . . . . . . Crushed . | . . . . . . . . . . . Highest Temperature 443 | . 9 . 56 217 21 . 54 371 147 443 Average Temperature 81 | . 6 . 27 58 14 . 21 82 56 99 Received Heat Transfer 2671 | . 15 177 36 366 222 . . 94 . 1761 Effects 9 | . . . . 2 . . . . . 7 Shutdowns 3 | . . . . . . . . . . 3 Interference 5 | . . . . 2 . . . . . 3 Damage (minor) 1 | . . . . . . . . . . 1 Siege Activations 5 | . . . . . . . . 1 1 3 Total Turns 56 | . . . . . . . . 1 1 54 Longest Duration 23 | . . . . . . . . 1 1 23 Robots Corrupted . | . . . . . . . . . . . Combat Hostiles . | . . . . . . . . . . . Parts Fried 3 | . . . . . . . . 2 . 1 Impact Corruptions 3 | . . . . . . . . . . 3 Robots Melted 1 | . . . . . . . . 1 . . Combat Hostiles 1 | . . . . . . . . 1 . . Parts Melted 2 | . . . . . . . 1 1 . . Heat Transferred 2383 | . . . . . 148 . 555 1480 . 200 Parts Sabotaged . | . . . . . . . . . . . Parts Stolen . | . . . . . . . . . . . Parts Stripped . | . . . . . . . . . . . Power Chain Reactions . | . . . . . . . . . . . Alert | -11 -10 -10 -9 -7 -6 -6 -6 -6 -6 -5 ------- Run | Yrd Mat Sub Rec Fac Fac Was Fac Ext Cet Fac Peak Influence 2084 | . 106 . 352 281 73 4 81 375 673 2084 Initial 321 | . . . 321 197 73 4 . 39 102 264 Average 315 | . 45 . 328 151 66 1 24 203 346 955 Maximum Alert Level 5 | . . . 1 1 . . . 1 2 5 Low Security (%) 53 | . 100 . . 74 100 100 100 46 9 . Level 1 26 | . . . 100 25 . . . 53 60 12 Level 2 7 | . . . . . . . . . 29 29 Level 3 2 | . . . . . . . . . . 10 Level 4 9 | . . . . . . . . . . 44 Level 5 . | . . . . . . . . . . 3 High Security . | . . . . . . . . . . . Max Security . | . . . . . . . . . . . Squads Dispatched 21 | . . . . 3 3 . 1 1 . 13 Investigation 4 | . . . . . . . . 1 . 3 Extermination 7 | . . . . 1 1 . 1 . . 4 Reinforcement 2 | . . . . . 1 . . . . 1 Assault 3 | . . . . . . . . . . 3 Garrison 5 | . . . . 2 1 . . . . 2 Intercept . | . . . . . . . . . . . Searches Triggered . | . . . . . . . . . . . Construction Impeded . | . . . . . . . . . . . Haulers Reinforced 1 | . . . . . . . . . . 1 Active Scanning Responses . | . . . . . . . . . . . Cargo Convoy Interrupts 1 | . . . . . . . . . . 1 Stealth | -11 -10 -10 -9 -7 -6 -6 -6 -6 -6 -5 --------- Run | Yrd Mat Sub Rec Fac Fac Was Fac Ext Cet Fac Distress Signals 5 | . . . . . . . 1 . 2 2 Communications Jammed . | . . . . . . . . . . . Distress Signals . | . . . . . . . . . . . Times Spotted 176 | . 5 27 1 16 7 . 3 28 10 79 Peak Tracking Total 11 | . 4 6 1 6 7 . 3 3 5 11 Tactical Retreats 10 | . . 4 . . . . . 3 . 3 Traps | -11 -10 -10 -9 -7 -6 -6 -6 -6 -6 -5 ------- Run | Yrd Mat Sub Rec Fac Fac Was Fac Ext Cet Fac Traps Triggered 1 | . . . . . 1 . . . . . Indirectly . | . . . . . . . . . . . Trap Hack Attempts . | . . . . . . . . . . . Triggered . | . . . . . . . . . . . Disarmed . | . . . . . . . . . . . Reprogrammed . | . . . . . . . . . . . Reused 1 | . . . . 1 . . . . . . Traps Extracted . | . . . . . . . . . . . Installed 1 | . . . . 1 . . . . . . Triggered 1 | . . . . 1 . . . . . . Most Traps Carried 1 | . . 1 1 1 . . . . . . Machines | -11 -10 -10 -9 -7 -6 -6 -6 -6 -6 -5 ---------- Run | Yrd Mat Sub Rec Fac Fac Was Fac Ext Cet Fac Machines Disabled 37 | . . 4 . . . . . . 3 30 Max in Single Turn 4 | . . 3 . . . . . . 1 4 Garrison Access 1 | . . . . . . . . . . 1 Machines Repaired . | . . . . . . . . . . . Machines Dismantled . | . . . . . . . . . . . Machines Sabotaged . | . . . . . . . . . . . Overloaded Fab Kills . | . . . . . . . . . . . Hacking | -11 -10 -10 -9 -7 -6 -6 -6 -6 -6 -5 --------- Run | Yrd Mat Sub Rec Fac Fac Was Fac Ext Cet Fac Machines Accessed 30 | . 3 . 1 6 2 . 2 8 1 7 Terminals 20 | . 3 . 1 3 1 . 2 7 1 2 Fabricators 4 | . . . . 2 . . . . . 2 Repair Stations 1 | . . . . . . . . . . 1 Recycling Units 3 | . . . . 1 1 . . 1 . . Scanalyzers 1 | . . . . . . . . . . 1 Garrison Access 1 | . . . . . . . . . . 1 Total Hacks 88 | . 12 . 6 13 5 . 7 23 1 21 Successful 33 | . 5 . 2 5 1 . 2 9 . 9 Failed 54 | . 6 . 4 8 4 . 5 14 1 12 Catastrophic 8 | . . . . 2 . . . 2 1 3 Database Lockouts 1 | . 1 . . . . . . . . . Manual 44 | . 15 . 2 6 1 . . 12 4 4 Terminals 61 | . 12 . 6 6 3 . 7 19 1 7 Fabricators 10 | . . . . 5 . . . . . 5 Repair Stations 3 | . . . . . . . . . . 3 Recycling Units 8 | . . . . 2 2 . . 4 . . Scanalyzers 4 | . . . . . . . . . . 4 Garrison Access 2 | . . . . . . . . . . 2 Terminal Hacks 11 | . 2 . 1 1 . . 2 4 . 1 Robot Schematic 1 | . . . 1 . . . . . . . Robot Analysis 1 | . 1 . . . . . . . . . Open Door 3 | . . . . . . . . 3 . . Open DSF 2 | . . . . 1 . . 1 . . . Branch Access Points 1 | . . . . . . . . . . 1 Terminal Index 1 | . 1 . . . . . . . . . Locate Traps 1 | . . . . . . . . 1 . . Zone Layout 1 | . . . . . . . 1 . . . Fabricator Hacks 4 | . . . . 2 . . . . . 2 Load Schematic 3 | . . . . 2 . . . . . 1 Build 1 | . . . . . . . . . . 1 Repair Station Hacks 3 | . . . . . . . . . . 3 Scan Component 2 | . . . . . . . . . . 2 Repair 1 | . . . . . . . . . . 1 Recycling Unit Hacks 2 | . . . . . 1 . . 1 . . Report Inventory 2 | . . . . . 1 . . 1 . . Scanalyzer 3 | . . . . . . . . . . 3 Insert Component 1 | . . . . . . . . . . 1 Analyze 2 | . . . . . . . . . . 2 Garrison Access Hacks . | . . . . . . . . . . . Unauthorized Hacks 10 | . 3 . 1 2 . . . 4 . . Terminals 8 | . 3 . 1 2 . . . 2 . . Botnet 8 | . 3 . 1 2 . . . 2 . . Fabricators . | . . . . . . . . . . . Repair Stations . | . . . . . . . . . . . Recycling Units 2 | . . . . . . . . 2 . . Reject 1 | . . . . . . . . 1 . . Mask 1 | . . . . . . . . 1 . . Scanalyzers . | . . . . . . . . . . . Garrison Access . | . . . . . . . . . . . Data Cores Recovered . | . . . . . . . . . . . Used . | . . . . . . . . . . . Hacking Detections 29 | . 3 . 1 5 2 . 2 8 1 7 Full Trace Events 5 | . . . 1 . . . . 1 . 3 Feedback Events . | . . . . . . . . . . . Feedback Blocked . | . . . . . . . . . . . Robot Schematics Acquired 1 | . . . 1 . . . . . . . Robots Built . | . . . . . . . . . . . Authchips . | . . . . . . . . . . . Time 81 | . . . . . . . . . . 81 Total Robot Build Rating . | . . . . . . . . . . . Part Schematics Acquired . | . . . . . . . . . . . Parts Built . | . . . . . . . . . . . Authchips . | . . . . . . . . . . . Time . | . . . . . . . . . . . Total Part Build Rating . | . . . . . . . . . . . Parts Repaired 1 | . . . . . . . . . . 1 Time 95 | . . . . . . . . . . 95 Parts Recycled . | . . . . . . . . . . . Recycled Matter . | . . . . . . . . . . . Retrieved Matter . | . . . . . . . . . . . Retrieved Components . | . . . . . . . . . . . Parts Scanalyzed 1 | . . . . . . . . . . 1 Part Schematics Acquired . | . . . . . . . . . . . Parts Damaged . | . . . . . . . . . . . Bothacking | -11 -10 -10 -9 -7 -6 -6 -6 -6 -6 -5 ------------ Run | Yrd Mat Sub Rec Fac Fac Was Fac Ext Cet Fac Used RIF Installer . | . . . . . . . . . . . Robots Hacked . | . . . . . . . . . . . Non-combat . | . . . . . . . . . . . Combat . | . . . . . . . . . . . Robot Hacks Applied . | . . . . . . . . . . . Relay Couplers Released 1 | . . . . . . . . . . 1 Machine Destruction 1 | . . . . . . . . . . 1 Fabnet Peak Effective % . | . . . . . . . . . . . Robots Rewired 14 | . . . . . 1 . . 13 . . Allies Hacked . | . . . . . . . . . . . Hacks Repelled . | . . . . . . . . . . . Allies | -11 -10 -10 -9 -7 -6 -6 -6 -6 -6 -5 -------- Run | Yrd Mat Sub Rec Fac Fac Was Fac Ext Cet Fac Total Allies 19 | . . . . . 1 . . 17 1 . Largest Group 8 | . . . . . 1 . . 8 8 5 Highest-Rated Group 452 | . . . . . 12 . . 389 452 231 Highest-Rated Ally 159 | . . . . . 12 . . 159 159 96 Total Orders . | . . . . . . . . . . . Ally Attacks 190 | . . . . . 4 . . 79 69 38 Total Damage 5521 | . . . . . 48 . . 2079 1824 1570 Kills 45 | . . . . . . . . 13 17 15 Allies Corrupted . | . . . . . . . . . . . Allies Melted 1 | . . . . . . . . 1 . . Intel | -11 -10 -10 -9 -7 -6 -6 -6 -6 -6 -5 ------- Run | Yrd Mat Sub Rec Fac Fac Was Fac Ext Cet Fac Robot Analysis Total 1 | . 1 . . . . . . . . . Derelict Logs Recovered 1 | . . 1 . . . . . . . . Drone Launches . | . . . . . . . . . . . Drone Recoveries . | . . . . . . . . . . . Exploration | -11 -10 -10 -9 -7 -6 -6 -6 -6 -6 -5 ------------- Run | Yrd Mat Sub Rec Fac Fac Was Fac Ext Cet Fac Turns Passed 8350 | . 639 587 196 951 320 1049 384 2131 412 1681 Spaces Moved 4099 | 1 210 410 149 350 191 558 210 1118 222 680 Core 1 | . . . . . . . . . . 1 Treads 3021 | . . . . 264 . 529 210 1118 222 678 Legs 310 | 1 3 . . 86 191 29 . . . . Wheels 767 | . 207 410 149 . . . . . . 1 Hover . | . . . . . . . . . . . Flight . | . . . . . . . . . . . Fastest Speed 100 | 120 100 115 115 130 130 160 160 160 160 140 Average Speed 156 | 120 114 115 115 212 132 168 160 160 163 162 Slowest Speed 900 | 120 120 115 115 240 200 240 160 160 240 900 Overloaded Moves . | . . . . . . . . . . . Propulsion Burnouts . | . . . . . . . . . . . Robots Hopped . | . . . . . . . . . . . Cave-ins Triggered 1 | . . . . . . . . . . 1 Exploration Rate (%) 36 | 2 35 22 34 9 4 96 9 89 78 19 Regions Visited 10 Branch Regions 4 Pre-discovered Areas 1 | . . 1 . . . . . . . . Known Exits Taken . | . . . . . . . . . . . Unknown Exits Taken 8 | 1 1 1 1 1 . . 1 1 1 . Scrap Searched 1 | . . 1 . . . . . . . . Spaces Dug 79 | . . 26 . . . . . 29 . 24 Terrain Destroyed 437 | . . 83 1 . . . . 37 1 315 Melee 15 | . . 11 . . . . . 4 . . Projectile 110 | . . . 1 . . . . 33 1 75 AOE 312 | . . 72 . . . . . . . 240 Terrain Rammed . | . . . . . . . . . . . Walls Destroyed . | . . . . . . . . . . . Machines Disabled . | . . . . . . . . . . . Actions | -11 -10 -10 -9 -7 -6 -6 -6 -6 -6 -5 --------- Run | Yrd Mat Sub Rec Fac Fac Was Fac Ext Cet Fac Total 5480 | . 595 474 161 467 239 651 242 1339 267 1045 Wait 656 | . 365 12 . 35 12 . 19 30 22 161 Move 4090 | . 209 409 148 349 191 557 209 1117 221 680 Hop . | . . . . . . . . . . . Pick Up 101 | . 8 8 3 13 6 15 3 9 2 34 Fast Attach 15 | . . . . 1 . 7 . 3 4 . Attach 63 | . 2 3 1 12 3 9 . 2 . 31 Detach 9 | . 1 . . . . 2 . 1 . 5 Swap 24 | . 2 3 2 4 1 3 . 3 4 2 Drop 64 | . . 2 1 5 . 25 3 10 9 9 Fire 276 | . 8 24 6 47 9 . 8 75 5 94 Melee 72 | . . 13 . . . 26 . 5 . 28 Ram . | . . . . . . . . . . . Kick . | . . . . . . . . . . . Crush 1 | . . . . . . . . . . 1 Escape Stasis . | . . . . . . . . . . . Rewire 108 | . . . . . 17 7 . 84 . . Trap 1 | . . . . 1 . . . . . . Miscellaneous . | . . . . . . . . . . . Route ------- -11/Scrapyard -10/Materials -10/Subcaves -9/Recycling -7/Factory -6/Factory -6/Waste -6/Factory -6/Extension (discovered 3 exits: *Fac x2 / *Cet) -6/Cetus (discovered 3 exits: *Fac x2 / [*Arc]) -5/Factory (discovered 2 exits: Upp x2) History --------- Turn | Location | Event 1 | -11/Scrapyard | Discovered new exit (range 0) 1 | -11/Scrapyard | Entered Materials 31 | -10/Materials | Central database locked down 317 | -10/Materials | Build established: Mutant 408 | -10/Materials | Discovered new exit (range 5) 640 | -10/Materials | Entered Subcaves 663 | -10/Subcaves | Shifting Twisted Machinery released Hvy. Battle Rifle 696 | -10/Subcaves | Shifting Twisted Machinery released Barrage Gun 1047 | -10/Subcaves | Ambushed by angry Subdweller bent on revenge 1168 | -10/Subcaves | Core integrity fell below 50% 1180 | -10/Subcaves | Discovered new exit (range 10) 1227 | -10/Subcaves | Entered Recycling 1235 | -9/Recycling | Found Scrap Engine 1371 | -9/Recycling | Discovered new exit (range 16) 1390 | -9/Recycling | Core integrity fell below 20% 1423 | -9/Recycling | Entered Factory 1423 | -7/Factory | Evolved 6 slots: Power x1, Propulsion x2, Utility x2, Weapon x1 2180 | -7/Factory | Lost 3 parts (1p2n) 2198 | -7/Factory | Garrison activated, responded to threat 2354 | -7/Factory | Discovered new exit (range 16) 2374 | -7/Factory | Entered another Factory area 2374 | -6/Factory | Evolved 2 slots: Utility x2 2653 | -6/Factory | Garrison activated, responded to threat 2694 | -6/Factory | Sucked down chute 2694 | -6/Factory | Entered Waste 2694 | -6/Waste | The area was eerily silent 2718 | -6/Waste | Lost 7 parts (1p2n2u2w) 3009 | -6/Waste | Discovered new exit (range 13) 3116 | -6/Waste | Found Damper Plating 3243 | -6/Waste | Build established: Scavenger-Mutant 3743 | -6/Waste | Entered Factory 3863 | -6/Factory | Identified exit to DSF 4003 | -6/Factory | Build established: Scavenger-Tank 4037 | -6/Factory | Discovered new exit (range 15) 4127 | -6/Factory | Entered Extension 4388 | -6/Extension | Rescued a captive Derelict 4434 | -6/Extension | Rescued a captive Derelict 4436 | -6/Extension | Rescued a captive Derelict 4775 | -6/Extension | Rescued A7 4798 | -6/Extension | Lost 5 allies 4975 | -6/Extension | Spotted B-75 Beast 4996 | -6/Extension | Spotted B-75 Beast 5036 | -6/Extension | Allies destroyed B-75 Beast 5047 | -6/Extension | Build established: Scavenger-Mutant 5077 | -6/Extension | Discovered new exit (range 3) 5583 | -6/Extension | Discovered new exit (range 10) 5585 | -6/Extension | Discovered new exit (range 6) 5630 | -6/Extension | Build established: Commander-Mutant 6048 | -6/Extension | Build established: Commander-Tank 6258 | -6/Extension | Entered Cetus 6258 | -6/Cetus | Accompanied by 7 allies (A7) 6263 | -6/Cetus | Acquired a Cetus Manufacturing Module code from A7 6274 | -6/Cetus | Spotted Cetus Guard 6276 | -6/Cetus | Spotted Cetus Guard 6278 | -6/Cetus | Spotted Cetus Guard 6284 | -6/Cetus | Allies destroyed Cetus Guard 6285 | -6/Cetus | Spotted Cetus Guard 6295 | -6/Cetus | Allies destroyed Cetus Guard 6296 | -6/Cetus | Allies destroyed Cetus Guard 6298 | -6/Cetus | Allies destroyed Cetus Guard 6378 | -6/Cetus | Discovered new exit (range 21) 6519 | -6/Cetus | Started Cetus Manufacturing Module 6542 | -6/Cetus | Discovered new exit (range 21) 6544 | -6/Cetus | Manufactured an Enhanced Grunt 6545 | -6/Cetus | Cetus Manufacturing Module disabled 6591 | -6/Cetus | Spotted Cetus Guard 6591 | -6/Cetus | Spotted Cetus Guard 6591 | -6/Cetus | Spotted Cetus Guard 6591 | -6/Cetus | Spotted Cetus Guard 6596 | -6/Cetus | Discovered new exit (range 21) 6597 | -6/Cetus | Allies destroyed Cetus Guard 6603 | -6/Cetus | Allies destroyed Cetus Guard 6610 | -6/Cetus | Allies destroyed Cetus Guard 6610 | -6/Cetus | Allies destroyed Cetus Guard 6620 | -6/Cetus | Met Revision 17 6670 | -6/Cetus | Entered Factory 6670 | -5/Factory | Accompanied by 6 allies (A7) 6670 | -5/Factory | Evolved 2 slots: Utility x2 6899 | -5/Factory | Build established: Scavenger-Tank 7543 | -5/Factory | Cargo convoy interrupted 7570 | -5/Factory | First assault squad dispatched 7581 | -5/Factory | Destroyed 8 combat bots 7643 | -5/Factory | Lost 7 parts (4u3w) 7732 | -5/Factory | Core integrity fell below 50% 7767 | -5/Factory | Lost 10 parts (2p2n4u2w) 7834 | -5/Factory | Core integrity fell below 20% 7854 | -5/Factory | Lost 4 parts (2p1n1u) 7899 | -5/Factory | Found Prototype Slashing Weapon 7901 | -5/Factory | Identified Centrium Greatsword 7905 | -5/Factory | Found Prototype Launcher 7913 | -5/Factory | Found Prototype Launcher 7940 | -5/Factory | Found Centrium Greatsword 7941 | -5/Factory | Identified Tactical Quantum Warhead 8222 | -5/Factory | Repaired Broken Adv. Recalibrator 8297 | -5/Factory | Identified exit to Upper Caves 8306 | -5/Factory | Garrison activated, responded to threat 8330 | -5/Factory | Build established: Skirmisher 8341 | -5/Factory | Destroyed 7 combat bots 8352 | -5/Factory | Crushed by falling debris 8352 | -5/Factory | Smashed by cave-in Last Messages --------------- 08343_ R-10 Processor collects Gauss Rifle. 08343_ P-70 Sage suffers critical hit (Blast). 08343_ Destroyed Imp. Heat Sink. 08343_ P-70 Sage destroyed. 08343_ Penetrated by Slug. 08345_ The unstable cave ceiling collapses. 08346_ U-05 Engineer lays Concrete. 08346_ Penetrated by Slug. 08346_ Adv. Heat Sink destroyed. 08347_ The unstable cave ceiling collapses. 08347_ U-05 Engineer lays Concrete. 08349_ Acquired 8 matter. 08349_ U-05 Engineer lays Concrete. 08350_ The unstable cave ceiling collapses. 08350_ Slug penetrates Earth. 08351_ System corrupted: Component data lost. 08351_ R-10 Processor destroyed. 08351_ U-05 Engineer lays Concrete. 08352_ The unstable cave ceiling collapses. 08352_ Crushed by falling debris. Map ----- +----------------------------------------------------+ | ?????????????????????????????????????????????????? | | ?????????????????????????????????????????????????? | | ?????????????????????????????????????????????????? | | ?????????????????????????????????????????????????? | | ?????????????????????????????????????????????????? | | ?????????????????????????????????????????????????? | | ?????????????????????????????????????????????????? | | ??############???????????????????????????????????? | | ??# [ ????????????????????????????????????? | | ??# ??????? ??# ???????????????????????? | | ### ???? # ????????????????????? | | # """ """ ?# # # %p% ??????????????????? | | = # """ """ ## # [%# ??????????????????? | | # """ " |! #??????????????????? | | + #? #?? ????????????? | | # ## ?# #????????????? | | # " " % * # #; ????????????? | | # "R" # ??????????????? | | # """ ?????????????? | | # # # " ??????????????? | | ############ ## """ ?????????????? | | #???????????# G ????????????? | | #???????????# != # """ ????????????? | | #+#####???????# |%# # " ???????????? | | #????????# = ! # = ??????????? | | ########## # =# @ # # ??????????? | | # h % ??????????? | | " """ # m ??????????? | | " """ # +????????? | | " """ + " #????????? | | # #????????? | | ! # ######### #####??????????? | | ##+#### #???????# ????????????? | | #???????# R ????????????? | | #???????# ! ???????????? | | #???????# u ????????????? | | +???????# # ???????????? | | #???????# ^^ # ??????????????? | | #???????### #???????????????? | | #?????????# ????????????????? | | ] #?????????# ??????????????????? | | = #?????????# ????????????????????? | | " ! #?????????# ???????????????????? | | #?????????# #### ????????????????????? | | #?????????# ???? ???????????????????? | | ####### #???##????? ???? ????????????????????? | | ??????# ^ ####"###?????????????????????????????? | | ??????# #?#???????????????????????????? | | ??????+ # ???????????????????????????? | | ??????# + ????????????????????????????? | +----------------------------------------------------+ Best States ------------- Heat Dissipation 83 Energy Generation 45 Energy Capacity 800 Matter Stores 475 Matter Capacity 700 Sight Range 22 Robot Scan Range 16 Terrain Scan Density 10 Base Temperature (-) 150 Armor Coverage 1600 Resistance: TH 15 Resistance: EM 90 Core Shielding 20 Weapon Cycling 15 Melee Speed Boost 20 Phase Shifting 10 Evasion (%) 55 Recoil Reduction 4 Kinecelleration 30 Item Schematics ----------------- None Robot Schematics ------------------ G-34 Mercenary | -9/Recycling | Hacked Fabricated ------------ Nothing Alien Tech Used ----------------- None Achievements -------------- None Challenges ------------ None Game ------ Seed LatentXenonMicrothruster Manual? 0 Play Time 01:44:39 Cumulative 174.9 hours Start 2024.03.04 @ 05:36:42 End 2024.03.04 @ 08:20:36 Sessions 3 Manual Loads 0 Difficulty Rogue Special Mode None Game No. 130 Rogue 120 Adventurer 0 Explorer 10 Win Type - Total 3 Types 3/0/0/0/0/0/0/0/0 Lore% 57 Gallery% 68 Achievement% 51 Wizard Run 0 Options --------- Layout 1 ASCII 0 Keyboard 0 Movement Mouse Keybinds 1 Fullscreen 1 Font 24/Smallcaps Map View 50x35 Zoom Use 0% Tactical HUD 1 Map Filters NONE Filters NONE Steam 1 RUN: ac0f3cc3-fe09-448c-83c3-6ca283365bb5